bitfinex/quotes_SOLUSD_20250416
["timestamp","ask_amount","ask_price","bid_price","bid_amount"]
[1744802595198,9.20342634,125.51,125.47,7.96954986]
[1744802595405,9.20342634,125.48,125.45,7.9713033]
[1744802595689,26.0,125.51,125.47,9.20342634]
[1744802595871,35.20342634,125.51,125.47,9.20342634]
[1744802596904,35.20342634,125.51,125.47,17.17305696]
[1744802599712,9.20342634,125.5,125.47,7.96963062]
[1744802599884,9.20342634,125.49,125.47,7.96963062]
[1744802600272,9.20342634,125.49,125.46,7.97066794]
[1744802600695,9.20342634,125.49,125.45,17.17441244]
[1744802600896,9.20342634,125.48,125.45,7.9709861]
[1744802601911,29.20342634,125.5,125.46,9.20342634]
[1744802602289,20.0,125.5,125.46,9.20342634]
[1744802602496,29.20342634,125.5,125.46,9.20342634]
[1744802603115,35.20342634,125.51,125.47,7.97003267]
[1744802603411,35.20342634,125.51,125.47,17.17345901]
[1744802604100,9.20342634,125.5,125.46,7.97033812]
[1744802604288,9.20342634,125.49,125.44,10.81712634]
[1744802605398,9.20342634,125.48,125.44,18.78879922]
[1744802605606,9.20342634,125.48,125.44,9.58537288]
[1744802605911,9.20342634,125.48,125.44,18.78879922]
[1744802606111,9.20342634,125.49,125.45,9.20342634]
[1744802606305,9.20342634,125.49,125.43,10.72]
[1744802606306,9.20342634,125.46,125.43,7.97227144]
[1744802606492,20.0,125.49,125.43,7.97227144]
[1744802606493,9.20342634,125.47,125.43,17.17569778]
[1744802606988,9.20342634,125.48,125.43,17.17569778]
[1744802607218,9.20342634,125.47,125.43,17.17569778]
[1744802607403,9.20342634,125.46,125.42,7.97321001]
[1744802607616,9.20342634,125.45,125.41,9.55211546]
[1744802607791,9.20342634,125.44,125.41,1.5786]
[1744802608393,9.20342634,125.43,125.39,27.89822377]
[1744802610709,7.97222742,125.44,125.39,27.89822377]
[1744802610911,17.17565376,125.44,125.39,27.89822377]
[1744802611291,17.17490468,125.45,125.4,9.20342634]
[1744802611491,35.9662385,125.46,125.41,9.20342634]
[1744802612013,9.20342634,125.45,125.41,9.20342634]
[1744802612230,9.20342634,125.44,125.4,9.20342634]
[1744802612517,9.20342634,125.43,125.39,27.89822377]
[1744802612705,9.20342634,125.43,125.39,18.69479743]
[1744802612905,9.20342634,125.42,125.38,9.59021585]
[1744802613113,9.20342634,125.42,125.38,18.79364219]
[1744802614017,17.17685732,125.42,125.38,18.79364219]
[1744802615320,9.20342634,125.42,125.38,18.79364219]
[1744802616120,29.20342634,125.43,125.39,9.20342634]
[1744802616710,35.82534484,125.44,125.4,9.20342634]
[1744802616907,26.6649,125.45,125.4,9.20342634]
[1744802616908,37.17510416,125.45,125.4,9.20342634]
[1744802617419,27.97167782,125.45,125.38,9.59021585]
[1744802617620,9.20342634,125.44,125.4,9.20342634]
[1744802618008,9.20342634,125.44,125.4,7.97424307]
[1744802618009,9.20342634,125.43,125.4,7.97424307]
[1744802618208,9.20342634,125.42,125.38,1.6146]
[1744802619210,9.20342634,125.42,125.38,9.59003714]
[1744802619600,7.9716318,125.45,125.41,9.20342634]
[1744802619818,17.17505814,125.45,125.41,9.20342634]
[1744802620600,9.20342634,125.45,125.41,9.20342634]
[1744802620815,9.20342634,125.45,125.4,9.20342634]
[1744802621237,9.20342634,125.45,125.41,9.20342634]
[1744802621822,9.20342634,125.45,125.42,7.97321001]
[1744802623114,35.20342634,125.46,125.42,7.97321001]
[1744802624932,30.72,125.47,125.43,9.20342634]
[1744802625115,10.72,125.47,125.44,9.20342634]
[1744802625430,112.10342634,125.49,125.44,9.20342634]
[1744802625626,29.20342634,125.49,125.44,9.20342634]
[1744802626434,37.17261593,125.49,125.45,7.9713033]
[1744802627431,9.20342634,125.48,125.45,7.9713033]
[1744802629430,27.96918959,125.49,125.45,7.9713033]
[1744802629605,17.17302541,125.48,125.44,17.17531685]
[1744802629935,9.20342634,125.47,125.44,7.97189051]
[1744802630721,9.20342634,125.46,125.43,9.57332864]
[1744802631422,9.20342634,125.47,125.43,9.57332864]
[1744802631726,7.96959907,125.48,125.44,9.20342634]
[1744802631913,17.17302541,125.48,125.44,9.20342634]
[1744802632114,7.96959907,125.48,125.44,9.20342634]
[1744802632620,39.92342634,125.51,125.47,9.20342634]
[1744802632812,47.89120823,125.51,125.47,9.20342634]
[1744802633121,10.72,125.51,125.47,9.20342634]
[1744802633328,27.89103749,125.51,125.46,9.20342634]
[1744802633622,9.20342634,125.5,125.46,17.17380886]
[1744802633824,10.72,125.51,125.47,9.20342634]
[1744802635109,10.72,125.51,125.48,7.96939751]
[1744802635924,10.72,125.51,125.48,17.17282385]
[1744802636114,55.81963757,125.53,125.48,18.75072385]
[1744802637128,9.20342634,125.52,125.48,18.75072385]
[1744802637325,33.96591796,125.54,125.49,9.20342634]
[1744802637515,9.20342634,125.53,125.49,9.20342634]
[1744802637716,9.20342634,125.53,125.48,18.75072385]
[1744802638017,9.20342634,125.51,125.48,1.5779]
[1744802638212,9.20342634,125.5,125.46,17.17386077]
[1744802638418,9.20342634,125.5,125.46,7.97043443]
[1744802638721,9.20342634,125.5,125.46,17.17386077]
[1744802639232,17.17191019,125.5,125.46,7.97043443]
[1744802639529,9.20342634,125.49,125.45,9.55529354]
[1744802640425,9.20342634,125.49,125.45,1.5843]
[1744802641131,18.68848385,125.5,125.45,9.55554937]
[1744802641328,17.17219702,125.49,125.45,9.55554937]
[1744802641636,9.20342634,125.48,125.45,1.5843]
[1744802642130,9.20342634,125.47,125.43,7.97226066]
[1744802642304,9.20342634,125.47,125.43,17.175687]
[1744802643128,17.17351415,125.47,125.43,17.175687]
[1744802643331,9.20342634,125.46,125.42,7.97293226]
[1744802643531,9.20342634,125.45,125.41,1.6146]
[1744802644129,9.20342634,125.44,125.41,1.6146]
[1744802644509,9.20342634,125.44,125.38,30.6590173]
[1744802644510,9.20342634,125.42,125.37,1.6121]
[1744802644710,9.20342634,125.42,125.38,9.20342634]
[1744802645222,9.20342634,125.42,125.38,17.17904327]
[1744802645852,46.62233776,125.43,125.38,17.17904327]
[1744802646005,9.20342634,125.42,125.38,17.17904327]
[1744802646332,9.20342634,125.4,125.37,1.6121]
[1744802646519,9.20342634,125.39,125.35,7.97766254]
[1744802646716,9.20342634,125.39,125.35,17.18108888]
[1744802647030,25.10634886,125.4,125.35,7.97766254]
[1744802647206,14.43649506,125.37,125.34,1.5104]
[1744802648330,14.43649506,125.37,125.34,9.48849264]
[1744802648631,22.41310573,125.37,125.34,1.5104]
[1744802648820,14.43649506,125.37,125.34,1.5104]
[1744802650328,34.43649506,125.37,125.33,7.97870268]
[1744802650532,34.43649506,125.37,125.33,22.41519774]
[1744802651439,14.43649506,125.38,125.34,14.43649506]
[1744802651637,60.43649506,125.39,125.34,14.43649506]
[1744802652129,19.9316925,125.43,125.37,14.43649506]
[1744802652130,20.0,125.42,125.37,14.43649506]
[1744802652332,60.43649506,125.42,125.37,14.43649506]
[1744802652532,14.43649506,125.41,125.36,14.43649506]
[1744802652731,14.43649506,125.39,125.33,53.9260417]
[1744802653039,34.43649506,125.38,125.33,22.41519774]
[1744802653337,14.43649506,125.37,125.33,22.41519774]
[1744802656031,14.43649506,125.36,125.33,7.97870268]
[1744802656607,34.43649506,125.38,125.34,14.43649506]
[1744802657037,34.43649506,125.38,125.33,22.41519774]
[1744802657538,14.43649506,125.37,125.33,22.41519774]
[1744802659625,14.43649506,125.37,125.31,47.53597389]
[1744802659626,22.41303008,125.37,125.32,22.41578538]
[1744802659829,14.43649506,125.35,125.32,7.97929032]
[1744802660841,34.43649506,125.36,125.32,7.97929032]
[1744802661214,14.43649506,125.33,125.31,1.5859]
[1744802661445,14.43649506,125.33,125.31,9.56593808]
[1744802662325,34.43649506,125.34,125.31,9.56593808]
[1744802663321,14.57865663,125.35,125.31,9.56593808]
[1744802663511,113.62,125.36,125.31,24.00243314]
[1744802663716,14.43649506,125.35,125.31,24.00243314]
[1744802663917,14.43649506,125.35,125.31,9.56593808]
[1744802664136,14.43649506,125.34,125.31,9.56593808]
[1744802664640,34.43649506,125.34,125.31,9.56593808]
[1744802666430,18.64964886,125.33,125.31,9.56593808]
[1744802668942,18.64964886,125.35,125.32,14.43649506]
[1744802670850,18.64964886,125.35,125.31,24.00243314]
[1744802671150,33.08614392,125.35,125.31,24.00243314]
[1744802671546,33.08614392,125.35,125.31,9.56593808]
[1744802672952,33.08614392,125.35,125.31,24.00243314]
[1744802673750,45.15649506,125.36,125.32,14.43649506]
[1744802673937,30.72,125.36,125.32,14.43649506]
[1744802674761,45.15649506,125.36,125.32,14.43649506]
[1744802675252,53.13364863,125.36,125.31,9.56593808]
[1744802675559,14.43649506,125.35,125.31,9.56593808]
[1744802676654,14.43649506,125.35,125.31,24.00243314]
[1744802676858,14.43649506,125.34,125.31,9.56593808]
[1744802679662,14.43649506,125.34,125.31,1.5859]
[1744802679663,22.41480597,125.34,125.31,1.5859]
[1744802679955,18.64964886,125.35,125.31,24.00255571]
[1744802680161,33.08614392,125.35,125.31,24.00255571]
[1744802680755,33.08614392,125.35,125.31,9.56606065]
[1744802680959,26.0,125.37,125.33,14.43649506]
[1744802681136,109.176,125.38,125.35,9.23703152]
[1744802681137,102.9,125.38,125.35,9.23703152]
[1744802681327,20.0,125.38,125.35,9.23703152]
[1744802681532,20.0,125.38,125.34,9.23703152]
[1744802682756,18.64964886,125.37,125.31,62.17838335]
[1744802682959,9.23703152,125.36,125.31,16.22786065]
[1744802683256,14.44057622,125.36,125.32,14.44057622]
[1744802684462,22.41775535,125.36,125.32,22.41968586]
[1744802684764,18.64964886,125.37,125.33,14.44057622]
[1744802685436,33.09022508,125.37,125.33,14.44057622]
[1744802685754,41.06664827,125.37,125.33,14.44057622]
[1744802685974,33.09022508,125.37,125.33,14.44057622]
[1744802686558,33.09022508,125.37,125.32,22.41968586]
[1744802686944,33.09022508,125.37,125.33,14.44057622]
[1744802688961,41.06678205,125.37,125.33,7.97880015]
[1744802689548,14.44057622,125.36,125.32,7.9792959]
[1744802689746,14.44057622,125.35,125.32,7.9792959]
[1744802690464,14.44057622,125.36,125.32,7.9792959]
[1744802690672,14.44057622,125.35,125.32,7.9792959]
[1744802691164,14.44057622,125.35,125.31,9.56600428]
[1744802691564,33.09022508,125.34,125.31,1.5859]
[1744802691771,33.09022508,125.34,125.31,9.5660944]
[1744802693160,14.44057622,125.34,125.31,9.5660944]
[1744802693369,18.64964886,125.35,125.32,14.44057622]
[1744802694366,18.64964886,125.35,125.32,22.42001807]
[1744802696070,18.64964886,125.35,125.32,7.97944185]
[1744802696252,41.06794003,125.35,125.31,9.56579183]
[1744802696654,10.72,125.36,125.33,14.44057622]
[1744802696853,10.72,125.36,125.32,14.44057622]
[1744802698542,10.72,125.36,125.32,22.41959472]
[1744802699075,18.64964886,125.36,125.32,22.41959472]
[1744802700572,18.64964886,125.37,125.33,14.44057622]
[1744802700963,18.64964886,125.37,125.32,22.41959472]
[1744802701471,41.06684225,125.37,125.32,22.41959472]
[1744802702290,14.44057622,125.36,125.32,7.9790185]
[1744802702473,33.09022508,125.35,125.31,9.56575283]
[1744802703252,27.8933422,125.35,125.31,9.56575283]
[1744802703456,9.24369334,125.33,125.31,1.5859]
[1744802703974,17.22288929,125.33,125.31,1.5859]
[1744802705174,22.42598855,125.33,125.31,1.5859]
[1744802705376,33.09644146,125.32,125.3,0.050413]
[1744802705578,41.07602907,125.32,125.3,0.050413]
[1744802708077,22.56916325,125.31,125.3,0.050413]
[1744802708280,41.21881211,125.31,125.3,0.050413]
[1744802711777,124.11881211,125.31,125.3,0.050413]
[1744802715187,138.56560471,125.31,125.3,0.050413]
[1744802715880,20.0,125.29,125.28,2.9292955]
[1744802716056,89.81644146,125.29,125.28,2.9292955]
[1744802716259,97.94008598,125.29,125.28,2.9292955]
[1744802718080,97.94008598,125.29,125.21,9.64074268]
[1744802718081,18.64964886,125.25,125.21,9.64074268]
[1744802718260,14.4467926,125.24,125.21,9.64074268]
[1744802718981,14.4467926,125.23,125.21,1.6545]
[1744802719285,33.09644146,125.23,125.21,1.6545]
[1744802719471,18.64964886,125.23,125.21,1.6545]
[1744802719780,20.0,125.24,125.21,9.64101686]
[1744802720083,18.64964886,125.24,125.21,1.6545]
[1744802720589,41.08116231,125.24,125.21,1.6545]
[1744802720884,33.09644146,125.24,125.21,1.6545]
[1744802721382,10.74,125.25,125.22,14.4467926]
[1744802722184,10.74,125.25,125.22,22.43234985]
[1744802723476,25.1867926,125.25,125.22,7.98555725]
[1744802725189,18.64964886,125.24,125.21,1.6545]
[1744802725379,14.4467926,125.23,125.21,1.6545]
[1744802726184,18.64964886,125.24,125.21,1.6545]
[1744802726185,33.09644146,125.24,125.21,1.6545]
[1744802726879,14.4467926,125.23,125.21,1.6545]
[1744802727192,9.26070006,125.23,125.21,1.6545]
[1744802728091,9.26070006,125.22,125.19,7.98757641]
[1744802728291,55.89507773,125.24,125.19,17.24827647]
[1744802728579,55.89507773,125.24,125.2,9.26070006]
[1744802728976,55.89507773,125.24,125.19,17.24827647]
[1744802729178,9.26070006,125.23,125.19,17.24827647]
[1744802729686,27.91034892,125.24,125.2,9.26070006]
[1744802730690,18.64964886,125.24,125.2,9.26070006]
[1744802731193,35.89515856,125.24,125.2,17.24755194]
[1744802731492,9.26070006,125.23,125.19,17.24825238]
[1744802731810,9.26070006,125.23,125.19,7.98755232]
[1744802732694,17.24609307,125.23,125.19,7.98755232]
[1744802733077,18.64964886,125.22,125.18,25.31783575]
[1744802735570,9.26070006,125.23,125.19,9.26070006]
[1744802735770,18.64964886,125.23,125.2,9.26070006]
[1744802736293,18.64964886,125.23,125.19,9.26070006]
[1744802736505,9.26070006,125.22,125.19,7.98740043]
[1744802736687,9.26070006,125.22,125.18,9.57258598]
[1744802736892,9.26070006,125.22,125.18,18.83328604]
[1744802739185,17.24696689,125.22,125.18,18.83328604]
[1744802739390,17.24696689,125.22,125.18,9.57258598]
[1744802740303,9.26070006,125.21,125.18,1.5844]
[1744802741298,17.24753782,125.21,125.18,1.5844]
[1744802743085,9.26070006,125.2,125.18,1.5844]
[1744802743489,9.26070006,125.19,125.14,18.78611722]
[1744802744002,9.26070006,125.18,125.14,1.5348]
[1744802744186,9.26070006,125.17,125.14,1.5348]
[1744802745401,7.98977309,125.16,125.14,1.5348]
[1744802745981,9.26070006,125.19,125.14,10.79550006]
[1744802746188,7.98785845,125.19,125.15,9.26070006]
[1744802746498,102.9,125.2,125.16,9.26070006]
[1744802747592,102.9,125.2,125.16,17.25016172]
[1744802749703,82.9,125.2,125.16,17.25016172]
[1744802750005,27.98761539,125.21,125.16,17.25016172]
[1744802750594,9.26070006,125.2,125.16,7.98946166]
[1744802751906,9.26070006,125.2,125.16,17.25016172]
[1744802752206,17.24797324,125.2,125.16,17.25016172]
[1744802752704,10.74,125.21,125.16,17.25016172]
[1744802752705,72.63565779,125.22,125.17,9.26070006]
[1744802753011,92.63635785,125.22,125.17,9.26070006]
[1744802753505,9.26070006,125.21,125.17,17.24932695]
[1744802755414,47.98670899,125.22,125.18,9.26070006]
[1744802755615,47.98670899,125.22,125.17,17.24932695]
[1744802757413,40.00070006,125.22,125.18,9.26070006]
[1744802757715,47.98666275,125.22,125.17,7.98862689]
[1744802757902,27.91034892,125.21,125.16,7.98961106]
[1744802758099,27.91034892,125.21,125.16,17.25031112]
[1744802758701,35.89745192,125.21,125.16,17.25031112]
[1744802758901,7.987103,125.21,125.17,9.26070006]
[1744802759617,9.26070006,125.19,125.16,7.98961106]
[1744802759792,9.26070006,125.17,125.14,1.5348]
[1744802760413,7.98788016,125.19,125.14,18.78645222]
[1744802760712,9.26070006,125.18,125.14,18.78645222]
[1744802760890,7.98788016,125.19,125.14,18.78645222]
[1744802760891,17.24858022,125.19,125.14,18.78645222]
[1744802761091,9.26070006,125.18,125.14,18.78645222]
[1744802761492,17.24858022,125.19,125.14,18.78645222]
[1744802762001,17.24858022,125.19,125.15,17.25110572]
[1744802762199,17.24858022,125.19,125.14,9.52552822]
[1744802762412,9.26070006,125.19,125.14,9.52552822]
[1744802762712,7.98663567,125.21,125.17,9.26070006]
[1744802762913,20.0,125.22,125.19,10.79250006]
[1744802763226,20.0,125.22,125.19,1.5318]
[1744802764022,30.74,125.24,125.2,17.2479205]
[1744802764405,38.72480787,125.24,125.2,17.2479205]
[1744802764841,47.98550793,125.24,125.2,17.2479205]
[1744802765421,47.98550793,125.24,125.2,7.98722044]
[1744802766003,47.98550793,125.24,125.2,17.2479205]
[1744802767705,40.00070006,125.24,125.2,17.2479205]
[1744802767907,30.74,125.24,125.2,17.2479205]
[1744802768524,47.98547983,125.24,125.2,17.2479205]
[1744802768720,47.98547983,125.24,125.2,7.98722044]
[1744802768923,47.98547983,125.24,125.2,17.2479205]
[1744802769314,9.26070006,125.23,125.2,7.98722044]
[1744802769849,17.24604371,125.23,125.19,1.5318]
[1744802770119,9.26070006,125.22,125.19,1.5318]
[1744802771021,17.24604371,125.23,125.19,1.5318]
[1744802771216,17.24604371,125.23,125.19,9.51960748]
[1744802772127,47.98571957,125.24,125.19,18.78030754]
[1744802777425,17.24618253,125.23,125.19,9.51960748]
[1744802780133,18.72488324,125.24,125.21,9.26070006]
[1744802780345,10.74,125.24,125.21,9.26070006]
[1744802780514,9.26070006,125.23,125.19,1.5318]
[1744802780712,17.2464689,125.23,125.19,1.5318]
[1744802780920,17.2464689,125.23,125.19,9.51955723]
[1744802781322,17.2464689,125.23,125.19,18.78025729]
[1744802782342,7.98576884,125.23,125.19,18.78025729]
[1744802782717,47.98569998,125.24,125.2,9.26070006]
[1744802784738,30.74,125.24,125.2,17.24768308]
[1744802784945,40.00070006,125.24,125.2,7.98698302]
[1744802785542,47.9853924,125.24,125.2,7.98698302]
[1744802785917,47.9853924,125.24,125.2,17.24768308]
[1744802786944,38.72469234,125.24,125.2,17.24768308]
[1744802787316,47.9853924,125.24,125.2,17.24768308]
[1744802787844,9.26070006,125.21,125.19,1.5318]
[1744802788346,27.91034892,125.23,125.19,1.5318]
[1744802789123,9.26070006,125.23,125.19,9.51961283]
[1744802789324,38.72469234,125.24,125.19,9.51961283]
[1744802789545,17.24615084,125.23,125.19,9.51961283]
[1744802790021,17.24615084,125.23,125.19,1.5318]
[1744802790623,9.26070006,125.22,125.19,1.5318]
[1744802792226,10.74,125.24,125.19,18.7802259]
[1744802792549,10.74,125.24,125.2,9.26070006]
[1744802792749,20.00070006,125.24,125.19,18.7802259]
[1744802793244,27.98567663,125.24,125.19,18.7802259]
[1744802793752,27.98567663,125.24,125.2,9.26070006]
[1744802793945,18.72497657,125.24,125.2,9.26070006]
[1744802794252,18.72497657,125.24,125.2,17.2478701]
[1744802794459,27.98567663,125.24,125.2,7.98717004]
[1744802795250,17.24567663,125.24,125.2,7.98717004]
[1744802795834,17.24567663,125.24,125.19,18.78004414]
[1744802798428,7.98497657,125.24,125.19,18.78004414]
[1744802798634,17.24507765,125.25,125.2,17.2474566]
[1744802799253,9.26070006,125.24,125.2,7.98675654]
[1744802800456,17.24541886,125.24,125.2,7.98675654]
[1744802801134,7.98434064,125.25,125.2,17.2474566]
[1744802801329,9.26070006,125.25,125.21,9.26070006]
[1744802802056,9.26070006,125.24,125.2,7.98675654]
[1744802802647,17.24481868,125.25,125.2,17.2474566]
[1744802803740,7.98411862,125.25,125.21,9.26070006]
[1744802804140,10.74,125.26,125.24,9.26070006]
[1744802804657,27.98424749,125.26,125.21,17.02950006]
[1744802804833,9.26070006,125.25,125.21,1.553]
[1744802805038,9.26070006,125.24,125.21,1.553]
[1744802805357,17.24573816,125.24,125.21,1.553]
[1744802805734,9.26070006,125.23,125.21,1.553]
[1744802808057,17.24609172,125.23,125.21,1.553]
[1744802808248,9.26070006,125.23,125.21,1.553]
[1744802808453,37.24565694,125.24,125.21,1.553]
[1744802809755,17.24503808,125.25,125.21,18.80022183]
[1744802810346,9.26070006,125.25,125.21,18.80022183]
[1744802810943,17.24487885,125.25,125.21,18.80022183]
[1744802811861,9.26070006,125.25,125.21,18.80022183]
[1744802812050,47.98435627,125.26,125.21,18.80022183]
[1744802813640,18.64964886,125.25,125.21,18.80022183]
[1744802814262,26.63380819,125.25,125.21,18.80022183]
[1744802816260,35.89450825,125.25,125.21,9.53952177]
[1744802816638,35.89450825,125.25,125.21,1.553]
[1744802816844,9.26070006,125.24,125.21,1.553]
[1744802818943,17.24540148,125.24,125.21,1.553]
[1744802821453,27.91034892,125.23,125.21,1.553]
[1744802822872,18.64964886,125.23,125.21,1.553]
[1744802824165,18.64964886,125.24,125.21,9.53952614]
[1744802825783,27.91034892,125.24,125.21,9.53952614]
[1744802826279,18.64964886,125.24,125.21,9.53952614]
[1744802826450,18.64964886,125.25,125.21,18.8002262]
[1744802829466,35.89451992,125.25,125.21,9.53952614]
[1744802829767,35.89451992,125.25,125.21,1.553]
[1744802830067,9.26070006,125.24,125.21,1.553]
[1744802830263,26.63381986,125.25,125.21,9.53956438]
[1744802830452,35.89451992,125.25,125.21,9.53956438]
[1744802833652,35.89441001,125.25,125.21,9.53956438]
[1744802836372,9.26070006,125.24,125.21,1.553]
[1744802836569,9.26070006,125.23,125.21,1.553]
[1744802836962,26.63370995,125.25,125.21,1.553]
[1744802837161,35.89441001,125.25,125.21,1.553]
[1744802838059,26.63370995,125.25,125.21,1.553]
[1744802838459,26.63370995,125.25,125.21,9.53944337]
[1744802839667,18.64964886,125.25,125.21,9.53944337]
[1744802840062,26.63368578,125.25,125.21,9.53944337]
[1744802840261,18.64964886,125.25,125.21,18.80014343]
[1744802840982,18.64964886,125.25,125.21,9.53944337]
[1744802841279,26.63368806,125.25,125.21,9.53944337]
[1744802841484,18.64964886,125.25,125.21,9.53944337]
[1744802841878,10.74,125.26,125.22,9.26070006]
[1744802842069,10.74,125.26,125.23,9.26070006]
[1744802842381,10.74,125.26,125.22,9.26070006]
[1744802842583,10.74,125.26,125.23,9.26070006]
[1744802843085,10.74,125.26,125.23,17.24572911]
[1744802844085,17.24353797,125.27,125.23,17.24572911]
[1744802844385,17.24353797,125.27,125.23,7.98502905]
[1744802844989,18.64964886,125.27,125.23,17.24572911]
[1744802845583,9.26070006,125.25,125.21,1.553]
[1744802845955,9.26070006,125.24,125.21,1.553]
[1744802846579,9.26070006,125.22,125.19,7.9876507]
[1744802846777,18.64964886,125.23,125.18,18.81077802]
[1744802846970,18.64964886,125.23,125.19,17.24807846]
[1744802847288,7.98537202,125.23,125.19,17.24807846]
[1744802847460,26.63502088,125.23,125.19,17.24807846]
[1744802847659,35.89572094,125.23,125.19,17.24807846]
[1744802850885,35.89572094,125.23,125.19,7.9873784]
[1744802851084,35.89572094,125.23,125.19,17.24807846]
[1744802853385,35.89572094,125.23,125.19,7.9873784]
[1744802854484,9.26070006,125.22,125.18,18.81075182]
[1744802855386,35.89572094,125.23,125.18,18.81075182]
[1744802857689,35.89637838,125.22,125.18,9.55005176]
[1744802857986,9.26070006,125.2,125.18,1.5619]
[1744802858284,9.26070006,125.2,125.17,7.98889165]
[1744802858488,9.26070006,125.2,125.16,17.25024374]
[1744802858684,9.26070006,125.21,125.16,17.25024374]
[1744802859588,17.2478023,125.21,125.16,17.25024374]
[1744802862268,64.64964886,125.22,125.18,9.26070006]
[1744802862469,64.64964886,125.22,125.19,9.26070006]
[1744802862784,64.64964886,125.22,125.18,9.26070006]
[1744802863595,73.91034892,125.22,125.18,9.26070006]
[1744802863979,64.64964886,125.22,125.18,9.26070006]
[1744802864392,64.64964886,125.22,125.18,17.24878995]
[1744802865884,44.64964886,125.22,125.18,17.24878995]
[1744802866599,102.9,125.24,125.19,9.26070006]
[1744802866600,112.16070006,125.24,125.19,9.26070006]
[1744802866785,112.16070006,125.24,125.18,27.9593313]
[1744802866786,18.64964886,125.23,125.2,9.26070006]
[1744802867692,46.0,125.24,125.2,9.26070006]
[1744802868280,46.0,125.24,125.19,1.5969]
[1744802868484,46.0,125.24,125.2,9.26070006]
[1744802868682,46.0,125.24,125.21,7.98658254]
[1744802873399,55.26070006,125.24,125.21,7.98658254]
[1744802873579,9.26070006,125.22,125.16,47.59032714]
[1744802873897,9.26070006,125.22,125.17,9.26070006]
[1744802874095,9.26070006,125.22,125.17,17.24983483]
[1744802874915,9.26070006,125.21,125.17,17.24983483]
[1744802876002,17.24746468,125.21,125.17,7.98913477]
[1744802877481,9.26070006,125.21,125.17,7.98913477]
[1744802878679,17.24740374,125.21,125.17,7.98913477]
[1744802880401,28.05251049,125.23,125.18,9.26070006]
[1744802880616,128.9,125.24,125.2,9.26070006]
[1744802880904,46.0,125.24,125.2,9.26070006]
[1744802881085,53.98479951,125.24,125.2,9.26070006]
[1744802881292,63.24549957,125.24,125.2,9.26070006]
[1744802881894,63.24549957,125.24,125.19,9.26070006]
[1744802882281,63.24549957,125.24,125.2,7.98722044]
[1744802883313,9.26070006,125.23,125.2,7.98722044]
[1744802883990,17.24601313,125.23,125.19,7.98749666]
[1744802886282,17.24601313,125.23,125.19,17.24819672]
[1744802887404,9.26070006,125.23,125.19,17.24819672]
[1744802888201,17.24613792,125.23,125.19,17.24819672]
[1744802888705,35.26070006,125.24,125.19,17.24819672]
[1744802888888,35.26070006,125.24,125.2,9.26070006]
[1744802889089,43.2454359,125.24,125.2,9.26070006]
[1744802889388,43.2454359,125.24,125.19,17.24819672]
[1744802890306,43.2454359,125.24,125.16,1.6165]
[1744802890307,27.91034892,125.21,125.16,1.6165]
[1744802890492,9.26070006,125.19,125.14,7.99105002]
[1744802890693,9.26070006,125.18,125.13,29.48465989]
[1744802890891,9.26070006,125.17,125.13,20.22395983]
[1744802891091,9.26070006,125.17,125.13,9.50395983]
[1744802891398,9.26070006,125.16,125.12,7.99231772]
[1744802892313,35.89948369,125.17,125.12,17.25301778]
[1744802892905,18.64964886,125.17,125.13,9.26070006]
[1744802893408,27.91034892,125.17,125.12,17.25301778]
[1744802893786,9.26070006,125.16,125.12,17.25301778]
[1744802894486,17.25050803,125.16,125.11,17.25331929]
[1744802895900,26.64050536,125.15,125.11,17.25331929]
[1744802896108,35.90120542,125.15,125.11,17.25331929]
[1744802896309,27.91034892,125.15,125.11,17.25331929]
[1744802896694,9.26070006,125.12,125.08,12.39424523]
[1744802896993,18.64964886,125.1,125.08,12.39424523]
[1744802897302,48.05251049,125.09,125.08,12.39424523]
[1744802897508,47.91034892,125.09,125.08,12.39424523]
[1744802897709,48.05251049,125.09,125.08,12.39424523]
[1744802898091,56.04675463,125.09,125.08,12.39424523]
[1744802898705,92.76675463,125.09,125.08,12.39424523]
[1744802899187,110.15635487,125.09,125.08,12.39424523]
[1744802899393,194.67915487,125.09,125.08,12.39424523]
[1744802899591,64.79181043,125.07,125.06,24.78849047]
[1744802899787,74.05251049,125.07,125.06,24.78849047]
[1744802900011,82.04803299,125.07,125.06,24.78849047]
[1744802900408,74.05251049,125.07,125.06,24.78849047]
[1744802900588,35.26070006,125.07,125.06,24.78849047]
[1744802900786,26.0,125.07,125.06,24.78849047]
[1744802900999,9.26070006,125.08,125.06,24.78849047]
[1744802901211,63.0668,125.09,125.06,32.7844854]
[1744802901410,72.32750006,125.09,125.06,32.7844854]
[1744802901612,72.32750006,125.09,125.06,24.78849047]
[1744802903090,72.32750006,125.09,125.06,32.78449122]
[1744802906202,20.0,125.12,125.08,9.26070006]
[1744802906705,10.74,125.13,125.11,9.26070006]
[1744802907316,10.74,125.13,125.11,14.48830138]
[1744802907903,10.74,125.13,125.12,14.48830138]